bitfinex-derivatives/quotes_ETHF0:USTF0_20250616
["timestamp","ask_amount","ask_price","bid_price","bid_amount"]
[1750079223143,30.37109,2613.8,2613.7,3.97287]
[1750079223341,0.76512,2613.6,2613.5,1.14087696]
[1750079223651,0.76518,2613.4,2613.3,1.14087696]
[1750079223847,29.615,2613.4,2613.3,1.14136185]
[1750079224050,34.615,2613.4,2613.0,1.14136185]
[1750079224246,0.7653,2613.0,2612.9,1.14136185]
[1750079224447,30.4113,2613.0,2612.9,1.90669185]
[1750079224746,30.4113,2613.0,2612.9,0.76533]
[1750079225646,0.76533,2612.9,2612.8,5.79192361]
[1750079225951,0.76533,2612.9,2612.8,5.11834361]
[1750079226138,0.76533,2612.9,2612.8,5.11832361]
[1750079226549,0.76533,2612.9,2612.8,3.97696176]
[1750079226749,0.76533,2612.9,2612.8,3.21162176]
[1750079228653,0.76533,2612.9,2612.8,0.00382176]
[1750079229054,1.40293,2612.9,2612.8,0.00382176]
[1750079229851,24.94793,2612.9,2612.8,0.00382176]
[1750079230052,0.76533,2612.9,2612.8,0.76918176]
[1750079230259,24.31033,2612.9,2612.8,0.00382176]
[1750079233058,24.31033,2612.9,2612.8,0.76918176]
[1750079233259,24.31033,2612.9,2612.8,0.00382176]
[1750079233654,24.31033,2612.9,2612.8,0.76918176]
[1750079234458,24.31033,2612.9,2612.8,0.00382176]
[1750079235364,24.31033,2612.9,2612.8,0.76918176]
[1750079236165,24.31033,2612.9,2612.8,0.00382176]
[1750079237753,24.31033,2612.9,2612.5,3.2078]
[1750079237754,0.76542,2612.6,2612.5,3.2078]
[1750079237963,0.7655,2612.3,2612.2,3.2078]
[1750079238163,24.2835,2612.3,2612.2,3.2078]
[1750079239268,24.2835,2612.3,2612.2,3.97333]
[1750079239666,24.2835,2612.3,2612.2,5.32263]
[1750079239870,3.2078,2612.7,2612.3,1.91377]
[1750079240068,2.56902,2612.8,2612.7,0.76539]
[1750079240069,23.513,2612.8,2612.7,0.76539]
[1750079240266,0.6382,2613.4,2612.7,8.47937328]
[1750079240470,23.552,2613.4,2613.3,0.76518]
[1750079240665,24.31721,2613.4,2613.3,0.76518]
[1750079241773,0.76521,2613.3,2613.2,3.2078]
[1750079241969,0.76524,2613.2,2613.1,2.10236]
[1750079242175,0.76523,2613.3,2613.2,0.76521]
[1750079242376,0.76523,2613.3,2613.2,3.97301]
[1750079242682,0.76523,2613.3,2613.2,3.97304]
[1750079243270,0.7653,2613.0,2612.9,5.64187617]
[1750079243575,0.76533,2612.9,2612.8,1.38354]
[1750079243969,0.76532,2613.0,2612.9,0.7653]
[1750079246176,29.698,2613.1,2612.8,3.05227617]
[1750079246382,29.698,2613.1,2612.9,0.76531]
[1750079246583,29.698,2613.1,2612.8,3.81761617]
[1750079246882,0.76533,2612.9,2612.8,2.67634]
[1750079247077,24.30633,2612.9,2612.8,2.67634]
[1750079247282,24.30633,2612.9,2612.8,3.81761617]
[1750079247486,24.30633,2612.9,2612.8,2.67634]
[1750079247686,24.30633,2612.9,2612.8,3.81761617]
[1750079248387,0.76536,2612.8,2612.7,1.90664617]
[1750079248984,0.76536,2612.8,2612.7,1.14127617]
[1750079249186,0.76542,2612.6,2612.5,1.97408023]
[1750079249374,30.44742,2612.6,2612.5,1.97408023]
[1750079249579,30.44742,2612.6,2612.5,0.83280406]
[1750079251290,29.682,2612.6,2612.5,0.83280406]
[1750079251586,29.682,2612.6,2612.5,2.35450563]
[1750079251785,8.47937328,2612.9,2612.8,0.76536]
[1750079251786,0.76536,2612.9,2612.8,0.76536]
[1750079251982,30.44236,2612.9,2612.8,1.91021615]
[1750079253788,30.44236,2612.9,2612.8,0.76536]
[1750079253990,30.44236,2612.9,2612.8,1.91075683]
[1750079254193,11.00650328,2613.2,2612.7,4.72950157]
[1750079254194,0.76529,2613.1,2613.0,0.76527]
[1750079254492,30.44229,2613.1,2613.0,0.76527]
[1750079254990,29.677,2613.1,2613.0,0.76527]
[1750079255186,30.44227,2613.1,2613.0,3.22753912]
[1750079255787,9.3558,2613.8,2613.5,0.76515]
[1750079256092,6.769,2614.1,2613.5,0.76515]
[1750079256285,0.76511,2613.7,2613.5,2.95192039]
[1750079256486,0.77085263,2613.6,2613.5,9.14205]
[1750079256688,0.00573263,2613.6,2613.5,10.66887298]
[1750079257082,0.77085263,2613.6,2613.5,10.66887298]
[1750079257292,0.77085263,2613.6,2613.5,4.26887298]
[1750079257788,0.77085263,2613.6,2613.5,2.74205]
[1750079257994,0.00573263,2613.6,2613.5,0.76515]
[1750079259196,0.00573263,2613.6,2613.5,2.04755]
[1750079259397,0.77085263,2613.6,2613.5,2.04755]
[1750079260595,0.00573263,2613.6,2613.5,2.04755]
[1750079261493,0.77085263,2613.6,2613.5,2.04755]
[1750079262291,24.29485263,2613.6,2613.5,2.04755]
[1750079262600,0.76515,2613.5,2613.4,10.37297]
[1750079263095,0.76515,2613.5,2613.4,3.2078]
[1750079263296,1.38765,2613.5,2613.4,3.2078]
[1750079263598,1.38765,2613.5,2613.4,3.97298]
[1750079263801,1.38765,2613.5,2613.4,3.2078]
[1750079265792,0.76521,2613.3,2613.2,3.33234]
[1750079265989,0.76521,2613.3,2613.2,2.5671]
[1750079266190,24.27221,2613.3,2613.2,0.6161]
[1750079266402,0.7653,2613.0,2612.9,1.37872]
[1750079266597,0.7653,2613.0,2612.9,3.34742]
[1750079267095,24.2723,2613.0,2612.9,2.5821]
[1750079267295,24.2723,2613.0,2612.9,0.646]
[1750079267501,0.76533,2612.9,2612.8,3.27517406]
[1750079269306,0.76533,2612.9,2612.8,4.04053406]
[1750079269603,0.76533,2612.9,2612.8,3.27517406]
[1750079269798,0.76533,2612.9,2612.8,4.04053406]
[1750079270696,6.139,2613.3,2612.8,5.18856406]
[1750079270901,0.76531,2613.1,2613.0,0.76528]
[1750079271202,0.76531,2613.1,2612.9,2.10441]
[1750079271203,0.7653,2613.0,2612.9,2.10441]
[1750079271402,0.76533,2612.9,2612.8,3.27517406]
[1750079271996,1.40463,2612.9,2612.8,3.27517406]
[1750079272199,1.40463,2612.9,2612.8,0.03042441]
[1750079272393,2.70733,2612.9,2612.8,0.03042441]
[1750079274996,7.70733,2612.9,2612.8,0.03042441]
[1750079276596,7.70733,2612.9,2612.8,3.23822441]
[1750079276597,6.90533,2612.9,2612.8,3.23822441]
[1750079276803,30.42833,2612.9,2612.8,4.00358441]
[1750079277599,6.14,2612.9,2612.8,4.00358441]
[1750079277799,6.14,2613.2,2613.1,0.76527]
[1750079278000,6.90527,2613.2,2613.1,3.97307]
[1750079278202,30.43527,2613.2,2613.1,3.97307]
[1750079279204,30.43524,2613.2,2613.1,3.97307]
[1750079280000,30.43524,2613.2,2613.1,3.2078]
[1750079280194,6.90524,2613.2,2613.1,3.2078]
[1750079280401,30.43624,2613.2,2613.1,3.97307]
[1750079280909,30.43624,2613.2,2613.1,3.2078]
[1750079281211,30.43624,2613.2,2613.1,3.97307]
[1750079281609,0.6534,2613.3,2613.1,3.97307]
[1750079281610,0.76523,2613.3,2613.2,0.76524]
[1750079281805,6.14,2613.4,2613.2,1.91311]
[1750079282006,6.14,2613.4,2613.3,0.6549]
[1750079282206,29.655,2613.4,2613.3,3.85321321]
[1750079282412,0.76516,2613.5,2613.4,0.76518]
[1750079282714,6.14573263,2613.6,2613.5,0.76515]
[1750079282905,0.76515,2613.5,2613.4,5.59183432]
[1750079283114,0.76515,2613.5,2613.4,5.21428]
[1750079283912,0.76515,2613.5,2613.4,3.2078]
[1750079284115,0.76515,2613.5,2613.3,0.6549]
[1750079284416,24.28587263,2613.6,2613.5,0.76515]
[1750079285308,24.28587263,2613.6,2613.5,2.00645]
[1750079285806,24.28587263,2613.6,2613.5,1.30867406]
[1750079286305,24.28587263,2613.6,2613.5,2.07382406]
[1750079288213,24.28587263,2613.6,2613.5,1.30867406]
[1750079288515,24.28587263,2613.6,2613.5,0.06737406]
[1750079288816,24.28587263,2613.6,2613.5,0.83252406]
[1750079290014,24.28587263,2613.6,2613.5,2.11492406]
[1750079290910,24.25887263,2613.6,2613.5,2.11492406]
[1750079291107,24.25887263,2613.6,2613.5,1.34977406]
[1750079291513,24.25887263,2613.6,2613.5,0.06737406]
[1750079292722,24.88487263,2613.6,2613.5,0.06737406]
[1750079292922,26.12097263,2613.6,2613.5,0.06737406]
[1750079294122,31.12097263,2613.6,2613.5,0.06737406]
[1750079298030,31.12097263,2613.6,2613.5,4.06e-06]
[1750079298426,54.26697263,2613.6,2613.5,4.06e-06]
[1750079300938,24.54287263,2613.6,2613.5,4.06e-06]
[1750079301233,54.12687263,2613.6,2613.5,4.06e-06]
[1750079302433,30.65487263,2613.6,2613.5,4.06e-06]
[1750079302628,30.65487263,2613.6,2613.5,0.76515406]
[1750079302629,53.50287263,2613.6,2613.5,0.76515406]
[1750079302830,53.50287263,2613.6,2613.5,4.06e-06]
[1750079303530,53.50287263,2613.6,2613.5,0.76515406]
[1750079304137,29.26373263,2613.6,2613.5,0.76515406]
[1750079304327,52.75573263,2613.6,2613.5,0.76515406]
[1750079304531,52.75573263,2613.6,2613.5,2.03185406]
[1750079304733,52.75573263,2613.6,2613.5,3.17530492]
[1750079304936,53.52085263,2613.6,2613.5,2.41015492]
[1750079305137,53.52085263,2613.6,2613.5,1.26670406]
[1750079305837,53.52085263,2613.6,2613.5,3.17530492]
[1750079307140,53.52085263,2613.6,2613.5,1.14345492]
[1750079307332,62.00022591,2613.6,2613.5,4.06e-06]
[1750079308642,62.00022591,2613.6,2613.5,1.33870406]
[1750079309339,53.52085263,2613.6,2613.5,2.10385406]
[1750079309650,53.49785263,2613.6,2613.5,3.24841055]
[1750079309939,30.02885263,2613.6,2613.5,2.10385406]
[1750079310133,53.49685263,2613.6,2613.5,2.10385406]
[1750079311632,0.00573263,2613.6,2613.5,2.10385406]
[1750079311837,23.46673263,2613.6,2613.5,2.10385406]
[1750079312037,24.23185263,2613.6,2613.5,2.10385406]
[1750079312848,0.00573263,2613.6,2613.5,2.10385406]
[1750079313039,24.22985263,2613.6,2613.5,2.10385406]
[1750079314452,24.21985263,2613.6,2613.5,2.10385406]
[1750079314745,23.45473263,2613.6,2613.5,2.10385406]
[1750079314946,0.00573263,2613.6,2613.5,2.10385406]
[1750079315146,23.45373263,2613.6,2613.5,2.10385406]
[1750079315645,24.21885263,2613.6,2613.5,2.10385406]
[1750079317235,23.45373263,2613.6,2613.5,2.10385406]
[1750079318346,24.21885263,2613.6,2613.5,2.10385406]
[1750079318543,3.2078,2614.2,2613.5,1.33870406]
[1750079318751,6.111,2614.1,2614.0,0.76501]
[1750079319046,29.548,2614.1,2614.0,2.64551]
[1750079319249,30.31298,2614.1,2614.0,2.64551]
[1750079319549,29.549,2614.1,2614.0,2.64551]
[1750079320143,30.31398,2614.1,2614.0,2.64551]
[1750079320346,30.31298,2614.1,2614.0,2.64551]
[1750079322344,29.548,2614.1,2614.0,2.64551]
[1750079323754,30.31298,2614.1,2614.0,2.64551]
[1750079324350,29.548,2614.1,2614.0,2.64551]
[1750079324856,30.31298,2614.1,2614.0,2.64551]
[1750079327752,0.76503,2613.9,2613.8,0.00573263]
[1750079327952,32.6673582,2613.9,2613.8,0.00573263]
[1750079328353,34.0070582,2613.9,2613.8,0.00573263]
[1750079330557,34.0070582,2613.9,2613.8,0.07310669]
[1750079331556,35.1546682,2613.9,2613.3,0.6433]
[1750079331752,0.76521,2613.3,2613.2,3.97302]
[1750079331954,24.17421,2613.3,2613.2,3.97302]
[1750079332261,7.47935,2613.5,2613.4,0.76518]
[1750079332455,30.88835,2613.5,2613.4,0.76518]
[1750079332652,30.25015,2613.5,2613.4,0.76518]
[1750079332851,29.485,2613.5,2613.4,0.76518]
[1750079333050,0.6382,2613.7,2613.6,0.76512]
[1750079333351,24.81929,2613.7,2613.6,0.76512]
[1750079333553,0.76518,2613.4,2613.3,3.97299]
[1750079333757,24.19218,2613.4,2613.3,3.97301]
[1750079333952,24.19218,2613.4,2613.3,3.2078]
[1750079334760,0.76521,2613.3,2613.2,0.00573263]
[1750079334961,2.07081,2613.3,2613.2,0.00573263]
[1750079336961,0.6612,2613.3,2613.2,0.77097263]
[1750079337161,1.42641,2613.3,2613.2,0.77097263]
[1750079337865,1.42641,2613.3,2613.2,0.00573263]
[1750079338054,0.76536,2612.8,2612.7,3.2078]
[1750079338362,24.19036,2612.8,2612.7,3.2078]
[1750079338854,24.80266,2612.8,2612.7,3.2078]
[1750079339248,0.76542,2612.6,2612.5,0.76543]
[1750079339457,24.24342,2612.6,2612.5,0.76543]
[1750079340662,23.478,2612.6,2612.5,0.76543]
[1750079340967,23.478,2612.6,2612.4,10.8726]
[1750079340968,0.61803263,2612.8,2612.7,0.76539]
[1750079341158,23.48173263,2612.8,2612.7,3.97319]
[1750079341353,24.24709263,2612.8,2612.7,3.97319]
[1750079341559,23.48173263,2612.8,2612.7,3.97319]
[1750079341763,24.24709263,2612.8,2612.7,3.97319]
[1750079342062,24.24709263,2612.8,2612.7,3.2078]
[1750079342257,30.32409263,2612.8,2612.7,3.2078]
[1750079342658,0.7655,2612.4,2612.2,3.2078]
[1750079342864,0.7655,2612.3,2612.2,9.6078]
[1750079343163,0.7655,2612.3,2612.2,3.2078]
[1750079343467,24.23849,2612.4,2612.3,0.7655]
[1750079343960,23.473,2612.4,2612.3,0.7655]
[1750079344770,23.473,2612.4,2612.3,0.83287406]
[1750079345064,24.23847,2612.4,2612.3,0.83287406]
[1750079345364,0.76571,2611.7,2611.5,0.76573]
[1750079345563,24.23672,2611.6,2611.5,0.76574]
[1750079345861,23.471,2611.6,2611.5,0.76574]
[1750079346563,24.23671,2611.6,2611.5,0.76574]
[1750079346866,0.76574,2611.5,2611.4,1.44425]
[1750079347271,24.23673,2611.6,2611.5,0.76574]
[1750079347465,0.76574,2611.5,2611.4,1.44426]
[1750079347663,0.76577,2611.4,2611.3,7.82609]
[1750079347858,0.76577,2611.4,2611.3,7.0603]
[1750079348062,0.76577,2611.4,2611.3,7.8261]
[1750079348269,0.76576,2611.5,2611.4,0.76576]
[1750079348566,0.76577,2611.4,2611.3,1.42608]
[1750079349072,0.76576,2611.5,2611.4,0.76577]
[1750079349465,23.471,2611.6,2611.5,0.76574]
[1750079349870,24.23671,2611.6,2611.5,0.76574]
[1750079350168,3.2078,2611.7,2611.6,0.76571]
[1750079350477,26.7868,2611.7,2611.3,0.6603]
[1750079350673,0.76572,2611.6,2611.5,0.76571]
[1750079350870,26.7868,2611.7,2611.6,0.76571]
[1750079351477,0.7656,2612.0,2611.9,0.76559]
[1750079351673,30.4176,2612.0,2611.9,0.76559]
[1750079351870,3.2078,2612.1,2612.0,0.76559]
[1750079352076,6.079,2612.2,2612.1,0.76556]
[1750079352571,29.68,2612.2,2612.1,0.76556]
[1750079353073,29.68,2612.2,2612.1,2.05706]
[1750079353472,38.1743282,2612.2,2611.7,0.6288]
[1750079353673,0.7656,2612.0,2611.9,0.76559]
[1750079354169,0.76558,2612.1,2612.0,0.76558]
[1750079354765,38.1743282,2612.2,2611.9,0.76561]
[1750079354766,0.76562,2612.0,2611.9,0.76561]
[1750079355677,0.76558,2612.1,2612.0,0.76558]
[1750079357671,14.5733282,2612.2,2611.8,1.2915]
[1750079357874,6.079,2612.2,2612.1,0.76556]
[1750079358078,29.664,2612.2,2612.1,0.76556]
[1750079358687,26.3558,2612.4,2611.8,1.91411]
[1750079358688,34.8501282,2612.4,2611.8,1.91411]
[1750079359076,30.56852,2612.3,2612.2,0.76551]
[1750079359681,1.91391,2612.1,2611.7,3.2078]
[1750079359976,0.76573,2611.6,2611.5,0.76572]
[1750079360180,30.57573,2611.6,2611.5,0.76572]
[1750079360476,0.76576,2611.5,2611.4,0.76575]
[1750079360780,0.76577,2611.4,2611.3,3.2078]
[1750079361775,0.76577,2611.4,2611.3,3.9736]
[1750079362081,29.81,2611.6,2611.3,3.9736]
[1750079362082,0.76575,2611.5,2611.4,0.76575]
[1750079362282,0.76575,2611.5,2611.4,2.00565]
[1750079362686,30.57573,2611.6,2611.5,0.76574]
[1750079362978,0.76574,2611.5,2611.4,2.00565]
[1750079363178,30.57572,2611.6,2611.5,0.76574]
[1750079363371,30.57572,2611.6,2611.5,2.00564]
[1750079363775,30.57572,2611.6,2611.5,1.2399]
[1750079363976,0.76574,2611.5,2611.4,0.76575]
[1750079365979,29.81,2611.6,2611.5,0.76574]
[1750079366179,3.2078,2611.8,2611.7,0.76568]
[1750079366382,6.174,2611.6,2611.5,0.76574]
[1750079366677,29.806,2611.6,2611.5,2.08934]
[1750079366885,29.802,2611.6,2611.5,2.08934]
[1750079367680,30.56771,2611.6,2611.5,0.76574]
[1750079368282,0.76577,2611.5,2611.4,0.76575]
[1750079368483,0.7658,2611.3,2611.2,3.39359]
[1750079368686,24.38579,2611.4,2611.3,0.76577]
[1750079369684,23.62,2611.4,2611.3,0.76577]
[1750079369881,0.7658,2611.3,2610.9,0.7659]
[1750079370074,0.76588,2611.1,2610.7,1.91494]
[1750079370278,0.76588,2611.1,2611.0,0.76588]
[1750079370474,24.47488,2611.1,2611.0,0.76588]
[1750079370679,1.39971,2611.3,2610.9,5.12256]
[1750079370981,3.21354372,2611.4,2611.0,1.326]
[1750079370982,29.882,2611.2,2611.0,1.326]
[1750079371182,3.21354372,2611.4,2611.3,0.7658]
[1750079371489,33.86531372,2611.4,2611.3,0.7658]
[1750079372086,33.09954372,2611.4,2611.3,0.7658]
[1750079372686,33.86531372,2611.4,2611.3,0.7658]
[1750079373085,3.97931372,2611.4,2611.3,0.7658]
[1750079373286,33.85731372,2611.4,2611.3,0.7658]
[1750079374085,33.09154372,2611.4,2611.3,0.7658]
[1750079374275,33.09154372,2611.4,2611.3,1.04908622]
[1750079374682,29.88374372,2611.4,2611.3,1.04908622]
[1750079374884,0.00574372,2611.4,2611.3,1.68828622]
[1750079375084,23.69874372,2611.4,2611.3,1.68828622]
[1750079375384,23.69874372,2611.4,2611.3,1.75566028]
[1750079375576,0.00574372,2611.4,2611.3,1.75566028]
[1750079375984,23.69874372,2611.4,2611.3,1.75566028]
[1750079376682,0.00574372,2611.4,2611.3,1.75566028]
[1750079376881,23.69874372,2611.4,2611.3,1.75566028]
[1750079379480,24.46451372,2611.4,2611.3,0.35066028]
[1750079379684,24.46451372,2611.4,2611.3,1.11646028]
[1750079379981,25.09171372,2611.4,2611.3,1.11646028]
[1750079380585,0.63294372,2611.4,2611.3,1.11646028]
[1750079380883,0.00574372,2611.4,2611.3,1.11646028]
[1750079381876,3.2078,2612.1,2611.3,8.55846028]
[1750079382077,3.2078,2612.1,2612.0,0.76559]
[1750079382286,6.175,2612.5,2612.4,0.76547]
[1750079382684,29.87,2612.5,2612.4,0.76547]
[1750079382885,29.87,2612.5,2612.4,2.04567]
[1750079383081,6.175,2612.5,2612.4,2.04567]
[1750079383282,6.23174372,2612.7,2612.6,0.76542]
[1750079383477,30.68913372,2612.7,2612.6,1.04870622]
[1750079383682,30.68913372,2612.7,2612.6,0.28328622]
[1750079383882,30.68913372,2612.7,2612.6,1.04870622]
[1750079384186,30.68913372,2612.7,2612.6,0.28328622]
[1750079384688,30.68913372,2612.7,2612.6,1.04870622]
[1750079384988,30.68913372,2612.7,2612.6,0.76542]
[1750079385285,30.68913372,2612.7,2612.6,0.33595443]
[1750079386286,6.23174372,2612.7,2612.6,1.10137443]
[1750079386485,6.23174372,2612.7,2612.6,4.30917443]
[1750079386789,0.00574372,2612.7,2612.6,4.30917443]
[1750079386988,23.68874372,2612.7,2612.6,4.30917443]
[1750079387188,23.68874372,2612.7,2612.6,4.97257443]
[1750079387392,0.00574372,2612.7,2612.6,5.59237443]
[1750079389194,23.8127,2613.2,2613.1,0.76527]
[1750079389494,54.48894,2613.2,2613.1,0.76527]
[1750079389696,53.7237,2613.2,2613.1,0.76527]
[1750079389891,23.8127,2613.2,2613.1,0.76527]
[1750079390094,53.063,2613.2,2613.1,2.34192443]
[1750079390290,3.2078,2613.4,2613.1,2.34192443]
[1750079390291,0.77092372,2613.4,2613.3,0.76521]
[1750079390487,30.67292372,2613.4,2613.3,0.76521]
[1750079390690,0.00574372,2613.4,2613.3,0.76521]
[1750079390892,23.68874372,2613.4,2613.3,0.76521]
[1750079391094,0.00574372,2613.4,2613.3,0.76521]
[1750079391392,23.68574372,2613.4,2613.3,4.36163264]
[1750079391590,0.00574372,2613.4,2613.3,4.36163264]
[1750079391794,23.68374372,2613.4,2613.3,5.60233264]
[1750079393491,0.00574372,2613.4,2613.3,5.60233264]
[1750079393695,23.67874372,2613.4,2613.3,5.60233264]
[1750079393892,0.00574372,2613.4,2613.3,5.60233264]
[1750079394599,0.6197,2613.8,2613.7,0.76509]
[1750079394792,30.5277,2613.8,2613.5,0.76513]
[1750079394994,1.91303,2613.4,2612.2,0.00574372]
[1750079395190,3.2078,2612.7,2612.2,1.91954372]
[1750079395393,0.7654,2612.7,2612.6,0.76542]
[1750079395694,30.153,2612.7,2612.3,1.2675]
[1750079395896,30.153,2612.7,2612.2,0.00574372]
[1750079395897,0.7655,2612.3,2612.2,0.00574372]
[1750079396792,2.1153,2612.3,2612.2,0.00574372]
[1750079397298,32.2783,2612.3,2612.2,0.00574372]
[1750079397901,32.2783,2612.3,2611.6,6.4]
[1750079397902,0.76566,2611.8,2611.6,6.4]
[1750079398089,0.76572,2611.6,2611.4,0.76575]
[1750079398494,24.7027,2611.7,2611.4,0.76577]
[1750079398701,24.7027,2611.7,2611.5,0.76573]
[1750079398894,24.7027,2611.7,2611.4,0.76575]
[1750079399094,24.7027,2611.7,2611.5,0.76574]
[1750079399800,0.76571,2611.6,2611.4,0.76575]
[1750079400000,24.7027,2611.7,2611.5,0.76574]
[1750079400200,24.70269,2611.7,2611.5,0.76574]
[1750079400402,0.76565,2611.8,2611.6,0.76569]
[1750079400594,30.151,2611.7,2611.6,0.76569]
[1750079401795,3.97341,2612.0,2611.4,1.91443]
[1750079402095,30.90562,2611.9,2611.8,0.76563]
[1750079402302,0.76567,2611.8,2611.6,0.76571]
[1750079402799,0.76565,2611.8,2611.7,0.76568]
[1750079402990,30.14,2611.9,2611.7,0.76568]
[1750079403187,30.90563,2611.9,2611.7,0.76568]
[1750079403699,0.76565,2611.8,2611.6,0.76568]
[1750079404002,0.76565,2611.8,2611.7,0.76568]
[1750079404202,30.90564,2611.9,2611.7,0.76568]
[1750079404500,0.76565,2611.8,2611.7,0.76567]
[1750079404804,30.90564,2611.9,2611.8,0.76565]
[1750079404998,30.90562,2611.9,2611.8,0.76565]
[1750079405195,30.14,2611.9,2611.8,0.76565]
[1750079406097,30.90562,2611.9,2611.8,0.76565]
[1750079406298,30.14,2611.9,2611.8,0.76565]
[1750079406494,30.90562,2611.9,2611.7,0.83303406]
[1750079406690,3.2078,2612.0,2611.7,0.06737406]
[1750079406895,30.136,2611.9,2611.7,1.33237406]
[1750079407098,6.225,2611.9,2611.8,0.76565]
[1750079409508,6.225,2611.9,2611.8,2.11745]
[1750079410199,3.2078,2612.3,2612.2,0.76553]
[1750079410400,33.3228,2612.3,2612.2,0.76553]
[1750079411204,9.4328,2612.3,2612.2,0.76553]
[1750079411411,33.3138,2612.3,2612.2,0.76553]
[1750079411909,9.4328,2612.3,2612.2,0.76553]
[1750079412109,33.3088,2612.3,2612.2,0.76553]
[1750079412300,33.3078,2612.3,2612.2,0.76553]
[1750079412609,9.4328,2612.3,2612.2,0.76553]
[1750079412816,33.3068,2612.3,2612.2,0.76553]
[1750079413107,0.76542,2612.6,2612.5,0.76541]
[1750079413301,30.97542,2612.6,2612.5,0.76541]
[1750079413503,0.76546,2612.5,2612.4,0.76545]
[1750079414212,30.97543,2612.6,2612.5,0.76544]
[1750079414611,0.76546,2612.5,2612.4,0.76545]
[1750079415010,24.62746,2612.5,2612.4,0.76545]
[1750079415210,0.7655,2612.3,2612.2,2.10502]
[1750079415410,23.862,2612.5,2612.2,1.3395]
[1750079415609,24.62746,2612.5,2612.4,0.76547]
[1750079415913,23.862,2612.5,2612.4,0.76547]
[1750079416114,6.333,2612.6,2612.5,0.76544]
[1750079416306,30.186,2612.6,2612.5,0.76544]
[1750079416508,6.333,2612.6,2612.5,0.76544]
[1750079416807,30.184,2612.6,2612.5,0.76544]
[1750079417008,3.2078,2612.7,2612.6,0.76541]
[1750079417207,33.3918,2612.7,2612.6,0.76541]
[1750079417408,34.15719,2612.7,2612.6,0.76541]
[1750079417911,33.3918,2612.7,2612.6,0.76541]
[1750079418515,33.3798,2612.7,2612.6,0.76541]
[1750079419607,3.2078,2612.7,2612.6,0.76541]
[1750079419808,33.3718,2612.7,2612.6,0.76541]
[1750079421213,30.164,2612.7,2612.6,0.83278406]
[1750079421603,6.333,2612.7,2612.6,4.04058406]
[1750079421808,6.33874372,2612.9,2612.8,0.76536]
[1750079422114,30.15574372,2612.9,2612.8,0.76536]
[1750079422613,30.92107372,2612.9,2612.8,0.76536]
[1750079423005,30.15574372,2612.9,2612.8,0.76536]
[1750079423314,30.92107372,2612.9,2612.8,0.76536]
[1750079425114,35.15574372,2612.9,2611.9,3.2078]
[1750079425309,9.2599182,2612.0,2611.9,3.2078]
[1750079425512,9.2599182,2612.0,2611.4,4.4875]
[1750079425513,38.6853282,2612.0,2611.6,3.2078]
[1750079425815,0.76569,2611.7,2611.6,0.76571]
[1750079426113,23.859,2611.7,2611.4,2.5731]
[1750079426316,7.09772,2611.6,2611.5,0.76572]
[1750079426619,6.332,2611.6,2611.5,7.16572]
[1750079426917,3.2078,2611.9,2611.8,0.76565]
[1750079427114,33.3928,2611.9,2611.8,0.76565]
[1750079427310,34.15844,2611.9,2611.8,0.76565]
[1750079427608,34.15844,2611.9,2611.7,0.76566]
[1750079427814,0.76565,2611.8,2611.7,0.76566]
[1750079428217,34.15843,2611.9,2611.8,0.76565]
[1750079428717,0.76565,2611.8,2611.7,0.76566]
[1750079428915,34.15844,2611.9,2611.8,0.76565]
[1750079429513,0.76565,2611.8,2611.7,0.76565]
[1750079429715,0.76569,2611.7,2611.6,0.76569]
[1750079429923,23.846,2611.7,2611.4,8.9731]
[1750079430215,24.6117,2611.7,2611.6,0.76571]
[1750079430417,0.76571,2611.6,2611.5,0.76572]
[1750079430717,24.6117,2611.7,2611.5,0.76572]
[1750079431115,24.6117,2611.7,2611.6,0.76571]
[1750079431319,0.76571,2611.6,2611.4,9.73884]
[1750079431513,23.842,2611.5,2611.4,8.47474]
[1750079432814,23.842,2611.5,2611.4,9.73064]
[1750079433214,0.76567,2611.8,2611.7,0.76568]
[1750079433421,0.6605,2612.1,2612.0,0.76559]
[1750079433619,24.4895,2612.1,2612.0,0.76559]
[1750079434020,23.829,2612.1,2612.0,0.76559]
[1750079434421,23.829,2612.1,2612.0,2.02149]
[1750079435522,23.829,2612.1,2612.0,0.76559]
[1750079436124,0.76559,2612.0,2611.9,0.76561]
[1750079436325,23.829,2612.1,2611.6,1.3127]
[1750079436531,0.76561,2612.0,2611.9,0.76561]
[1750079436821,23.829,2612.1,2611.6,1.3127]
[1750079437024,9.1360282,2611.9,2611.5,0.6215]
[1750079437219,0.76571,2611.6,2611.5,1.38722]
[1750079437421,0.76571,2611.7,2611.6,0.7657]
[1750079438821,0.6417,2611.9,2611.5,2.53584]
[1750079439027,6.9747,2611.9,2611.8,0.76565]
[1750079439320,30.7807,2611.9,2611.8,0.76565]
[1750079439528,31.54632,2611.9,2611.8,0.76565]
[1750079440221,30.7807,2611.9,2611.8,0.76565]
[1750079440423,31.54632,2611.9,2611.8,0.76565]
[1750079441320,32.69478,2611.9,2611.5,0.6215]
[1750079441521,0.76569,2611.7,2611.6,0.76568]
[1750079441719,0.76567,2611.8,2611.7,0.76566]
[1750079442519,12.3438282,2611.9,2611.8,0.76565]
[1750079442714,23.803,2611.9,2611.7,3.2078]
[1750079442919,7.0556,2612.0,2611.9,0.76562]
[1750079443114,30.8636,2612.0,2611.9,0.76562]
[1750079443726,30.098,2612.0,2611.9,0.76562]
[1750079444429,30.098,2612.0,2611.5,0.6215]
[1750079444619,0.76571,2611.6,2611.5,0.76572]
[1750079444824,30.86271,2611.6,2611.5,0.76572]
[1750079445023,31.48741,2611.6,2611.5,0.76572]
[1750079445326,0.76574,2611.5,2611.4,0.83311406]
[1750079446025,0.76574,2611.5,2611.4,0.06737406]
[1750079446330,5.29814,2611.5,2611.4,0.06737406]